fUSD/lending_fUSD_20260221
["ID","MTS","AMOUNT","RATE_DAILY","PERIOD"]
[406272995,1771680640358,-1010.96861102,0.00014421,2]
[406272996,1771680640367,-1010.96861102,0.00014421,2]
[406272997,1771680640380,-1010.96861102,0.00014421,2]
[406272998,1771680640389,-1010.96861102,0.00014421,2]
[406272999,1771680640399,-1010.96861102,0.00014421,2]
[406273000,1771680640408,-1010.96861102,0.00014421,2]
[406273001,1771680640417,-1010.96861102,0.00014421,2]
[406273002,1771680640428,-1010.96861102,0.00014421,2]
[406273003,1771680640439,-1010.96861102,0.00014421,2]
[406273004,1771680640449,-1010.96861102,0.00014421,2]
[406273005,1771680640458,-1010.96861102,0.00014421,2]
[406273006,1771680640467,-1010.96861102,0.00014421,2]
[406273007,1771680640476,-1010.96861102,0.00014421,2]
[406273008,1771680640485,-1010.96861102,0.00014421,2]
[406273009,1771680640494,-1010.96861102,0.00014421,2]
[406273010,1771680640504,-1010.96861102,0.00014421,2]
[406273011,1771680640513,-1010.96861102,0.00014421,2]
[406273012,1771680640522,-1010.96861102,0.00014421,2]
[406273013,1771680640531,-1010.96861102,0.00014421,2]
[406273014,1771680640541,-1010.96861102,0.00014421,2]
[406273015,1771680640550,-1010.96861102,0.00014421,2]
[406273016,1771680640560,-1010.96861102,0.00014421,2]
[406273017,1771680640572,-1010.96861102,0.00014421,2]
[406273018,1771680640582,-1010.96861102,0.00014421,2]
[406273019,1771680640591,-1010.96861102,0.00014421,2]
[406273020,1771680640602,-1010.96861102,0.00014421,2]
[406273021,1771680640612,-1010.96861102,0.00014421,2]
[406273022,1771680640623,-1010.96861102,0.00014421,2]
[406273023,1771680640633,-1010.96861102,0.00014421,2]
[406273024,1771680640642,-1010.96861102,0.00014421,2]
[406273025,1771680640651,-1010.96861102,0.00014421,2]
[406273026,1771680640661,-1010.96861102,0.00014421,2]
[406273027,1771680640670,-1010.96861102,0.00014421,2]
[406273028,1771680640679,-1010.96861102,0.00014421,2]
[406273029,1771680640688,-1010.96861102,0.00014421,2]
[406273030,1771680640698,-1010.96861102,0.00014421,2]
[406273031,1771680640707,-1010.96861102,0.00014421,2]
[406273032,1771680640716,-992.58736355,0.00014421,2]
[406273033,1771680640725,-992.58736355,0.00014421,2]
[406273034,1771680640734,-992.58736355,0.00014421,2]
[406273035,1771680640743,-992.58736355,0.00014421,2]
[406273036,1771680640753,-992.58736355,0.00014421,2]
[406273037,1771680640762,-992.58736355,0.00014421,2]
[406273038,1771680640773,-992.58736355,0.00014421,2]
[406273039,1771680640782,-992.58736355,0.00014421,2]
[406273040,1771680640791,-992.58736355,0.00014421,2]
[406273041,1771680640801,-992.58736355,0.00014421,2]
[406273042,1771680640810,-992.58736355,0.00014421,2]
[406273043,1771680640819,-992.58736355,0.00014421,2]
[406273044,1771680640828,-992.58736355,0.00014421,2]
[406273045,1771680640838,-992.58736355,0.00014421,2]
[406273046,1771680640847,-992.58736355,0.00014421,2]
[406273047,1771680640858,-992.58736355,0.00014421,2]
[406273048,1771680640868,-992.58736355,0.00014421,2]
[406273049,1771680640877,-992.58736355,0.00014421,2]
[406273050,1771680640887,-992.58736355,0.00014421,2]
[406273051,1771680640899,-992.58736355,0.00014421,2]
[406273052,1771680640908,-992.58736355,0.00014421,2]
[406273053,1771680640917,-992.58736355,0.00014421,2]
[406273054,1771680640926,-992.58736355,0.00014421,2]
[406273055,1771680640935,-992.58736355,0.00014421,2]
[406273056,1771680640944,-992.58736355,0.00014421,2]
[406273057,1771680640953,-992.58736355,0.00014421,2]
[406273058,1771680640964,-992.58736355,0.00014421,2]
[406273059,1771680640974,-992.58736355,0.00014421,2]
[406273060,1771680640983,-992.58736355,0.00014421,2]
[406273061,1771680640993,-992.58736355,0.00014421,2]
[406273062,1771680641002,-992.58736355,0.00014421,2]
[406273063,1771680641011,-992.58736355,0.00014421,2]
[406273064,1771680641021,-992.58736355,0.00014421,2]
[406273065,1771680641031,-1000.85892493,0.00014421,2]
[406273066,1771680641042,-1000.85892493,0.00014421,2]
[406273067,1771680641051,-1000.85892493,0.00014421,2]
[406273068,1771680641061,-1000.85892493,0.00014421,2]
[406273069,1771680641070,-1000.85892493,0.00014421,2]
[406273070,1771680641080,-1000.85892493,0.00014421,2]
[406273071,1771680641089,-1000.85892493,0.00014421,2]
[406273072,1771680641099,-1000.85892493,0.00014421,2]
[406273073,1771680641108,-1000.85892493,0.00014421,2]
[406273074,1771680641118,-1000.85892493,0.00014421,2]
[406273075,1771680641127,-1000.85892493,0.00014421,2]
[406273076,1771680641136,-1000.85892489,0.00014421,2]
[406273077,1771680641147,-500.0,0.00014422,2]
[406273078,1771680641156,-257.03080178,0.00014422,2]
[406273079,1771680641170,-500.0,0.00014423,2]
[406273080,1771680641180,-500.0,0.00014423,2]
[406273081,1771680641189,-500.0,0.00014423,2]
[406273082,1771680641198,-500.0,0.00014423,2]
[406273083,1771680641209,-500.0,0.00014423,2]
[406273084,1771680641218,-500.0,0.00014423,2]
[406273085,1771680641227,-500.0,0.00014423,2]
[406273086,1771680641239,-500.0,0.00014423,2]
[406273087,1771680641248,-500.0,0.00014423,2]
[406273088,1771680641257,-500.0,0.00014423,2]
[406273089,1771680641267,-500.0,0.00014423,2]
[406273090,1771680641276,-500.0,0.00014423,2]
[406273091,1771680641285,-500.0,0.00014423,2]
[406273092,1771680641294,-500.0,0.00014423,2]
[406273093,1771680641304,-500.0,0.00014423,2]
[406273094,1771680641313,-500.0,0.00014423,2]
[406273095,1771680641322,-500.0,0.00014423,2]
[406273096,1771680641331,-500.0,0.00014423,2]
[406273097,1771680641340,-500.0,0.00014423,2]
[406273098,1771680641349,-500.0,0.00014423,2]
[406273099,1771680641366,-500.0,0.00014423,2]
[406273100,1771680641377,-500.0,0.00014423,2]
[406273101,1771680641386,-500.0,0.00014423,2]
[406273102,1771680641396,-616.19377918,0.00014423,2]
[406273103,1771680641405,-500.0,0.00014523,2]
[406273104,1771680641414,-500.0,0.00014523,2]
[406273105,1771680641423,-532.19255729,0.00014523,2]
[406273106,1771680641433,-500.0,0.00014523,2]
[406273107,1771680641442,-500.0,0.00014523,2]
[406273108,1771680641452,-500.0,0.00014523,2]
[406273109,1771680641460,-500.0,0.00014523,2]
[406273110,1771680641470,-601.05527925,0.00014523,2]
[406273111,1771680641479,-500.0,0.00014523,2]
[406273112,1771680641488,-500.0,0.00014523,2]
[406273113,1771680641497,-500.0,0.00014523,2]
[406273114,1771680641506,-500.0,0.00014523,2]
[406273115,1771680641515,-500.0,0.00014523,2]
[406273116,1771680641525,-500.0,0.00014523,2]
[406273117,1771680641534,-500.0,0.00014523,2]
[406273118,1771680641543,-500.0,0.00014523,2]
[406273119,1771680641556,-500.0,0.00014523,2]
[406273120,1771680641565,-500.0,0.00014523,2]
[406273121,1771680641574,-500.0,0.00014523,2]
[406273122,1771680641583,-500.0,0.00014523,2]
[406273123,1771680641593,-554.43343843,0.00014523,2]
[406273124,1771680641602,-500.0,0.00014523,2]
[406273125,1771680641612,-500.0,0.00014523,2]
[406273126,1771680641621,-500.0,0.00014523,2]
[406273127,1771680641630,-500.0,0.00014523,2]
[406273128,1771680641640,-500.0,0.00014523,2]
[406273129,1771680641649,-500.0,0.00014523,2]
[406273130,1771680641658,-500.0,0.00014523,2]
[406273131,1771680641668,-500.0,0.00014523,2]
[406273132,1771680641677,-500.0,0.00014523,2]
[406273133,1771680641686,-500.0,0.00014523,2]
[406273134,1771680641695,-505.36393545,0.00014523,2]
[406273135,1771680641705,-500.0,0.00014523,2]
[406273136,1771680641714,-500.0,0.00014523,2]
[406273137,1771680641723,-500.0,0.00014523,2]
[406273138,1771680641732,-500.0,0.00014523,2]
[406273139,1771680641741,-500.0,0.00014523,2]
[406273140,1771680641754,-500.0,0.00014523,2]
[406273141,1771680641763,-500.0,0.00014523,2]
[406273142,1771680641773,-500.0,0.00014523,2]
[406273143,1771680641782,-500.0,0.00014523,2]
[406273144,1771680641791,-500.0,0.00014523,2]
[406273145,1771680641800,-500.0,0.00014523,2]
[406273146,1771680641809,-274.81553287,0.00014523,2]
[406273147,1771680641819,-503.02114283,0.00014523,2]
[406273148,1771680641828,-500.0,0.00014523,2]
[406273149,1771680641837,-504.39683652,0.00014523,2]
[406273150,1771680641847,-500.0,0.00014523,2]
[406273151,1771680641857,-500.0,0.00014523,2]
[406273152,1771680641866,-500.0,0.00014523,2]
[406273153,1771680641876,-500.0,0.00014523,2]
[406273154,1771680641886,-500.0,0.00014523,2]
[406273155,1771680641895,-500.0,0.00014523,2]
[406273156,1771680641905,-500.0,0.00014523,2]
[406273157,1771680641915,-500.0,0.00014523,2]
[406273158,1771680641925,-500.0,0.00014523,2]
[406273159,1771680641935,-500.0,0.00014523,2]
[406273160,1771680641950,-500.0,0.00014523,2]
[406273161,1771680641959,-500.0,0.00014523,2]
[406273162,1771680641969,-500.0,0.00014523,2]
[406273163,1771680641978,-500.0,0.00014523,2]
[406273164,1771680641989,-500.0,0.00014523,2]
[406273165,1771680641998,-500.0,0.00014523,2]
[406273166,1771680642007,-500.0,0.00014523,2]
[406273167,1771680642018,-500.0,0.00014523,2]
[406273168,1771680642030,-500.0,0.00014523,2]
[406273169,1771680642040,-500.0,0.00014523,2]
[406273170,1771680642049,-500.0,0.00014523,2]
[406273171,1771680642060,-500.0,0.00014523,2]
[406273172,1771680642072,-500.0,0.00014523,2]
[406273173,1771680642083,-500.0,0.00014523,2]
[406273174,1771680642092,-500.0,0.00014523,2]
[406273175,1771680642102,-500.0,0.00014523,2]
[406273176,1771680642113,-500.0,0.00014523,2]
[406273177,1771680642123,-500.0,0.00014523,2]
[406273178,1771680642132,-500.0,0.00014523,2]
[406273179,1771680642144,-500.0,0.00014523,2]
[406273180,1771680642154,-500.0,0.00014523,2]
[406273181,1771680642169,-500.0,0.00014523,2]
[406273182,1771680642178,-627.47385881,0.00014523,2]
[406273183,1771680642187,-500.0,0.00014523,2]
[406273184,1771680642197,-500.0,0.00014523,2]
[406273185,1771680642207,-500.0,0.00014523,2]
[406273186,1771680642216,-204.27737629,0.00014523,2]
[406273187,1771680642226,-500.0,0.00014523,2]
[406273188,1771680642235,-500.0,0.00014523,2]
[406273189,1771680642245,-500.0,0.00014523,2]
[406273190,1771680642254,-500.0,0.00014523,2]
[406273191,1771680642263,-500.0,0.00014523,2]
[406273192,1771680642273,-513.53363328,0.00014523,2]
[406273193,1771680642282,-500.0,0.00014523,2]
[406273194,1771680642291,-500.0,0.00014523,2]
[406273195,1771680642300,-500.0,0.00014523,2]
[406273196,1771680642310,-564.4785355,0.00014523,2]
[406273197,1771680642319,-500.0,0.00014523,2]
[406273198,1771680642328,-500.0,0.00014523,2]
[406273199,1771680642338,-500.0,0.00014523,2]
[406273200,1771680642350,-500.0,0.00014523,2]
[406273201,1771680642359,-500.0,0.00014523,2]
[406273202,1771680642370,-500.0,0.00014523,2]
[406273203,1771680642379,-500.0,0.00014523,2]
[406273204,1771680642389,-500.0,0.00014523,2]
[406273205,1771680642399,-386.77491301,0.00014523,2]
[406273206,1771680642409,-500.0,0.00014523,2]
[406273207,1771680642419,-500.0,0.00014523,2]
[406273208,1771680642428,-511.47956793,0.00014523,2]
[406273209,1771680642439,-1000.0,0.00014523,2]
[406273210,1771680642448,-664.73,0.00014548,2]
[406273211,1771680642467,-153.54765348,0.00014633,2]
[406273212,1771680642485,-151.0,0.00014634,2]
[406273213,1771680642500,-39640.87281652,0.00014643,2]
[406273214,1771680642509,-386.0,0.00014652,2]
[406273215,1771680642518,-500.0,0.00014696,2]
[406273216,1771680642527,-541.91630413,0.00014723,2]
[406273217,1771680642538,-664.73,0.00014822,2]
[406273218,1771680642548,-231.66846555,0.00014829,2]
[406273219,1771680642557,-6647.08,0.00014853,2]
[406273220,1771680642568,-13311.11,0.00014858,2]
[406273221,1771680642577,-155.81953974,0.000149,2]
[406273222,1771680642586,-272.0,0.00014907,2]
[406273223,1771680642595,-150.0,0.00014934,2]
[406273224,1771680642605,-200.0,0.00014963,2]
[406273225,1771680642614,-500.0,0.0001497,2]
[406273226,1771680642624,-39640.87281652,0.00015062,2]
[406273227,1771680642633,-2466.07,0.00015073,2]
[406273228,1771680642642,-664.73,0.00015096,2]
[406273229,1771680642652,-900.0,0.00015123,2]
[406273230,1771680642661,-3435.57,0.00015137,2]
[406273231,1771680642670,-168.71198045,0.00015173,2]
[406273232,1771680642681,-503.5027165,0.00015173,2]
[406273233,1771680642690,-184.37223932,0.00015173,2]
[406273234,1771680642701,-246.364609,0.00015173,2]
[406273235,1771680642710,-501.38512914,0.00015173,2]
[406273236,1771680642721,-500.41653761,0.00015173,2]
[406273237,1771680642732,-500.0,0.00015173,2]
[406273238,1771680642743,-500.18684223,0.00015173,2]
[406273239,1771680642752,-500.0,0.00015173,2]
[406273240,1771680642762,-165.27434071,0.00015173,2]
[406273241,1771680642772,-226.19494716,0.00015173,2]
[406273242,1771680642782,-503.18537404,0.00015173,2]
[406273244,1771680642791,-500.0,0.00015173,2]
[406273246,1771680642800,-500.0,0.00015173,2]
[406273247,1771680642808,-500.0,0.00015173,2]
[406273248,1771680642817,-500.0,0.00015173,2]
[406273249,1771680642827,-500.0,0.00015173,2]
[406273250,1771680642835,-500.0,0.00015173,2]
[406273251,1771680642845,-1000.0,0.00015199,2]
[406273252,1771680642855,-454.14985718,0.00015244,2]
[406273253,1771680642864,-164.94,0.00015269,2]
[406273254,1771680642875,-348.4,0.0001531,2]
[406273255,1771680642884,-150.99,0.0001531,2]
[406273256,1771680642893,-9999.99,0.0001531,2]
[406273257,1771680642903,-420.0,0.00015337,2]
[406273258,1771680642912,-255.0,0.00015346,2]
[406273259,1771680642924,-1500.0,0.00015351,2]
[406273260,1771680642933,-606.1313001,0.00015367,2]
[406273261,1771680642950,-664.77710921,0.0001537,2]
[406273262,1771680642960,-1680.0,0.00015399,2]
[406273263,1771680642970,-300.0,0.000154,2]
[406273264,1771680642979,-500.0,0.000154,2]
[406273265,1771680642988,-39640.87281652,0.00015482,2]
[406273266,1771680642998,-150.0,0.00015505,2]
[406273267,1771680643008,-200.0,0.00015511,2]
[406273268,1771680643017,-250.0,0.00015644,2]
[406273269,1771680643026,-500.0,0.00015721,2]
[406273270,1771680643035,-850.90980006,0.00015721,2]
[406273271,1771680643045,-1000.0,0.00015721,2]
[406273272,1771680643054,-130304.0,0.000159,2]
[406273273,1771680643064,-39640.87281652,0.00015902,2]
[406273274,1771680643073,-282.56,0.00015956,2]
[406273275,1771680643082,-519.0,0.00016,2]
[406273276,1771680643332,-222.52232917,0.00016,2]
[406273277,1771680643342,-200.0,0.00016059,2]
[406273278,1771680643351,-9999.99,0.00016116,2]
[406273280,1771680643360,-163712.42130027,0.000162,5]
[406273282,1771680643369,-1500.0,0.00016268,2]
[406273283,1771680643378,-39640.87281652,0.00016321,2]
[406273284,1771680643388,-5531.0,0.000164,3]
[406273285,1771680643397,-30386.19400985,0.00016426,2]
[406273286,1771680643406,-212.32,0.00016438,30]
[406273287,1771680643415,-900.0,0.00016493,2]
[406273288,1771680643425,-583.31,0.00016499,2]
[406273289,1771680643434,-164.94,0.00016541,2]
[406273290,1771680643443,-433.0,0.00016554,2]
[406273291,1771680643452,-200.0,0.00016607,2]
[406273292,1771680643462,-167.27,0.00016712,2]
[406273293,1771680643471,-14477.60496123,0.00016741,2]
[406273294,1771680643487,-3897.78383234,0.00016741,2]
[406273295,1771680643498,-523.34287504,0.00016741,2]
[406273296,1771680643509,-20742.14114791,0.00016741,2]
[406273297,1771680643518,-587.0,0.00016802,2]
[406273298,1771680643527,-2000.0,0.00016816,2]
[406273299,1771680643537,-5.33073563,0.00016939,2]
[406273300,1771680643548,-2345.66926437,0.00016939,2]
[406273301,1771680643557,-39.64740145,0.00017,2]
[406273302,1771680643575,-253.77171343,0.00017,2]
[406273303,1771680643658,-255150.07008202,0.00017,2]
[406273304,1771680643669,-2082.63808521,0.00017,2]
[406273305,1771680643684,-987.61314542,0.00017,2]
[406273306,1771680643695,-22808.07647415,0.00017,2]
[406273307,1771680643706,-1697.18831677,0.00017,2]
[406273309,1771680645768,-987.61314542,0.00017,2]
[406273315,1771680648367,5000.01,0.0001422,2]
[406273316,1771680735028,500.0,0.00014,2]
[406273317,1771680735159,600.0,0.00014,2]
[406273318,1771680735512,500.0,0.00014,2]
[406273319,1771680735995,500.0,0.0001,2]
[406273320,1771680741193,500.0,0.00014,2]
[406273321,1771680742333,500.0,0.00014,2]
[406273322,1771680742651,500.0,0.0001,2]
[406273323,1771680742949,500.0,0.00014,2]
[406273324,1771680743971,500.0,0.00014,2]
[406273325,1771680745259,400.01,0.00014,2]
[406273327,1771680746689,500.0,0.0001,2]
[406273328,1771680747196,500.0,0.0001,2]
[406273329,1771680747876,-99.99,0.00014,2]
[406273330,1771680747904,-500.0,0.00014,2]
[406273331,1771680747931,-500.0,0.00014,2]
[406273332,1771680749301,500.0,0.00014,2]
[406273333,1771680750310,500.0,0.00014,2]
[406273334,1771680750818,500.0,0.0001,2]
[406273335,1771680752182,500.0,0.00014,2]
[406273336,1771680752656,500.0,0.0001,2]
[406273337,1771680753707,4000.01,0.00014123,2]
[406273338,1771680753738,8500.01,0.00014123,2]
[406273339,1771680753762,10000.01,0.00014123,2]
[406273340,1771680756525,500.0,0.0001,2]
[406273341,1771680756892,-500.0,0.00014,2]
[406273342,1771680756919,-500.0,0.00014,2]
[406273343,1771680760535,-3540.44417084,0.00014123,2]
[406273344,1771680760644,-10000.01,0.00014123,2]
[406273345,1771680789296,283.5,0.00014113,2]
[406273346,1771680921532,169.83,0.00011317,2]
[406273347,1771680921717,169.83,0.00012732,2]
[406273348,1771680927691,4376.85,0.00014111,2]
[406273349,1771680951966,171.43915838,0.00014046,2]
[406273350,1771680976335,4828.57084162,0.000141,2]
[406273351,1771680997090,1106.21172774,0.00014046,2]
[406273352,1771681012341,1600.0,0.00013936,2]
[406273353,1771681035399,299.99,0.00014,2]
[406273354,1771681039909,4700.02,0.000137,2]
[406273355,1771681039939,10000.01,0.000137,2]
[406273356,1771681039961,10000.01,0.000137,2]
[406273357,1771681039982,10000.01,0.000137,2]
[406273358,1771681040004,10000.01,0.000137,2]
[406273359,1771681040025,10000.01,0.000137,2]
[406273360,1771681082953,184.55,0.00013527,2]
[406273361,1771681085955,454.438108,0.00013412,2]
[406273362,1771681086158,300.0,0.00013613,2]
[406273363,1771681103687,10000.01,0.000134,2]
[406273364,1771681103708,4061.021892,0.000134,2]
[406273365,1771681112688,-1045.0,0.00013399,2]
[406273366,1771681166873,5000.01,0.000131,2]
[406273367,1771681230728,5000.01,0.000129,2]
[406273374,1771681294357,5000.01,0.000128,2]
[406273375,1771681326436,5000.01,0.000127,2]
[406273376,1771681336345,500.0,0.0001,2]
[406273377,1771681337862,500.0,0.0001,2]
[406273378,1771681338434,500.0,0.0001,2]
[406273379,1771681338469,500.0,0.0001,2]
[406273380,1771681338686,500.0,0.0001,2]
[406273381,1771681338863,500.0,0.0001,2]
[406273382,1771681339162,500.0,0.0001,2]
[406273383,1771681339685,500.0,0.0001,2]
[406273384,1771681340181,500.0,0.0001,2]
[406273385,1771681340208,500.0,0.0001,2]
[406273386,1771681341170,0.01,0.0001,2]
[406273387,1771681341193,499.99,0.0001,2]
[406273388,1771681341704,500.0,0.0001,2]
[406273389,1771681342250,500.0,0.0001,2]
[406273390,1771681342816,500.0,0.0001,2]
[406273391,1771681342847,500.0,0.0001,2]
[406273392,1771681343302,615.60950961,0.0001,2]
[406273393,1771681343331,500.0,0.0001,2]
[406273394,1771681343806,500.0,0.0001,2]
[406273395,1771681344308,870.290484,0.0001,2]
[406273396,1771681346917,500.0,0.0001,2]
[406273397,1771681347421,500.0,0.0001,2]
[406273398,1771681347925,500.0,0.0001,2]
[406273399,1771681348388,500.0,0.0001,2]
[406273400,1771681348870,500.0,0.0001,2]
[406273401,1771681349374,500.0,0.0001,2]
[406273402,1771681349950,500.0,0.0001,2]
[406273403,1771681350435,500.0,0.0001,2]
[406273404,1771681350923,129.719516,0.0001,2]
[406273405,1771681350944,370.280484,0.0001,2]
[406273406,1771681351443,500.0,0.0001,2]
[406273407,1771681351923,978.39,0.0001,2]
[406273408,1771681389892,5000.01,0.000126,2]
[406273409,1771681485082,5000.01,0.00011233,2]
[406273410,1771681659519,-1641.98,0.00011233,2]
[406273417,1771681721089,-250.0,0.00011795,2]
[406273418,1771681721666,-4035.73000639,0.000121,2]
[406273419,1771681721778,-10000.01,0.000121,2]
[406273420,1771681721891,-10000.01,0.000121,2]
[406273421,1771681721999,-10000.01,0.000121,2]
[406273422,1771681722140,-2321.77000639,0.000121,2]
[406273423,1771681722163,-5356.46998722,0.000121,2]
[406273424,1771681723873,-300.0,0.00012199,2]
[406273425,1771681723903,-300.0,0.00012356,2]
[406273426,1771681723931,-250.0,0.00012356,2]
[406273427,1771681723963,-182.6347845,0.00012362,2]
[406273428,1771681723991,-300.0,0.00012599,2]
[406273429,1771681724020,-1200.0,0.00012599,2]
[406273430,1771681724113,-4469.01,0.000126,3]
[406273431,1771681724161,-465.730431,0.000126,3]
[406273432,1771681724176,-596.259569,0.000126,3]
[406273433,1771681724189,-4934.740431,0.00012715,2]
[406273434,1771681724220,-1827.379569,0.00012715,2]
[406273435,1771681724249,-150.0,0.00012806,2]
[406273436,1771681724276,-500.0,0.00012807,2]
[406273437,1771681724328,-1492.76,0.00012861,2]
[406273438,1771681724378,-3552.490862,0.00012861,2]
[406273439,1771681724393,-3461.999138,0.00012861,2]
[406273440,1771681724405,-5045.250862,0.00013022,2]
[406273441,1771681724441,-4167.970862,0.00013022,2]
[406273442,1771681724467,-1664.068276,0.00013022,2]
[406273443,1771681726979,-258.0,0.00013099,2]
[406273444,1771681727013,-3953.01,0.000131,5]
[406273445,1771681727058,-1577.99,0.000131,5]
[406273446,1771681727095,-160.0,0.000131,3]
[406273447,1771681727125,-219.0,0.000131,3]
[406273448,1771681727156,-150.0,0.000131,3]
[406273449,1771681727187,-787.0,0.00013254,2]
[406273450,1771681727311,-7368.01,0.00013285,2]
[406273451,1771681727325,-2991.22,0.00013285,2]
[406273452,1771681727336,-3240.0,0.00013425,2]
[406273453,1771681727346,-1383.98,0.00013699,2]
[406273454,1771681727355,-200.0,0.00013699,2]
[406273455,1771681727365,-184.53,0.00013699,2]
[406273456,1771681727375,-1680.0,0.00013859,2]
[406273457,1771681793531,166.66,0.00013646,2]
[406273458,1771681797859,-208.0,0.00013859,3]
[406273459,1771681797890,-150.0,0.00013859,3]
[406273460,1771681808728,381.889756,0.00013309,2]
[406273461,1771681809032,160.0,0.00013859,2]
[406273462,1771681809115,198.0,0.00013859,2]
[406273463,1771681820462,150.0,0.00013859,2]
[406273470,1771681831826,-600.0,0.00013872,2]
[406273471,1771681831838,-223.641,0.00013872,2]
[406273472,1771681831880,-40.359,0.00013872,2]
[406273473,1771681831892,-195.0,0.00013873,2]
[406273474,1771681831902,-502.0647315,0.00013873,2]
[406273475,1771681831914,-300.0,0.00013873,2]
[406273476,1771681831924,-200.0,0.00013874,2]
[406273477,1771681831934,-300.06077373,0.00013884,2]
[406273478,1771681831945,-195.0,0.00013887,2]
[406273479,1771681831954,-205.68835716,0.00013887,2]
[406273480,1771681831964,-600.0,0.00013898,2]
[406273481,1771681831974,-226.91415027,0.00013898,2]
[406273482,1771681831984,-255.0,0.00013908,2]
[406273483,1771681831994,-2500.0,0.00013918,2]
[406273484,1771681832004,-169.88351399,0.00013922,2]
[406273485,1771681832014,-150.0,0.00013959,2]
[406273486,1771681832026,-500.0,0.00013979,2]
[406273487,1771681832037,-304.3,0.00013979,2]
[406273488,1771681832048,-1000.0,0.00013997,2]
[406273489,1771681832058,-1200.0,0.00013997,2]
[406273490,1771681832068,-855.58910008,0.00014,2]
[406273491,1771681832077,-500.0,0.00014,2]
[406273492,1771681832088,-500.0,0.00014,2]
[406273493,1771681832098,-500.0,0.00014,2]
[406273494,1771681832109,-595.10010439,0.00014,2]
[406273495,1771681832119,-500.0,0.00014,2]
[406273496,1771681832130,-500.0,0.00014,2]
[406273497,1771681832141,-500.0,0.00014,2]
[406273498,1771681832151,-500.0,0.00014,2]
[406273500,1771681832161,-500.0,0.00014,2]
[406273502,1771681832170,-500.0,0.00014,2]
[406273504,1771681832180,-500.0,0.00014,2]
[406273506,1771681832190,-500.0,0.00014,2]
[406273507,1771681832199,-500.0,0.00014,2]
[406273509,1771681832209,-500.0,0.00014,2]
[406273511,1771681832219,-500.0,0.00014,2]
[406273512,1771681832229,-500.0,0.00014,2]
[406273514,1771681832240,-500.0,0.00014,2]
[406273515,1771681832251,-500.0,0.00014,2]
[406273516,1771681832261,-500.0,0.00014,2]
[406273517,1771681832270,-500.0,0.00014,2]
[406273518,1771681832280,-500.0,0.00014,2]
[406273519,1771681832290,-500.0,0.00014,2]
[406273520,1771681832300,-500.0,0.00014,2]
[406273521,1771681832310,-500.0,0.00014,2]
[406273522,1771681832320,-500.0,0.00014,2]
[406273523,1771681832330,-500.0,0.00014,2]
[406273524,1771681832341,-500.0,0.00014,2]
[406273525,1771681832351,-500.0,0.00014,2]
[406273526,1771681832361,-500.0,0.00014,2]
[406273527,1771681832372,-500.0,0.00014,2]
[406273528,1771681832382,-500.0,0.00014,2]
[406273529,1771681832392,-500.0,0.00014,2]
[406273530,1771681832402,-500.0,0.00014,2]